[Event "January 9 Early 2024"]
[Site "https://www.chess.com"]
[Date "2024.01.11"]
[Round "11"]
[White "Lopusiewicz, Piotr"]
[Black "Kislinsky, Alexey"]
[Result "0-1"]
[Board "38"]
[TimeControl "180+1"]
[WhiteFideId "1116029"]
[BlackFideId "14108801"]
[WhiteElo "2472"]
[BlackElo "2713"]
[WhiteTeam "POL"]
[BlackTeam "CZE"]
[WhiteClock "0:00:26"]
[BlackClock "0:01:25"]

1. d4 {[%clk 0:03:00]}  Nf6 {[%clk 0:02:59]} 2. c4 {[%clk 0:03:01]}  g6 {[%clk 0:02:59]} 3. Nc3 {[%clk 0:03:00]}  d5 {[%clk 0:02:59]} 4. Nf3 {[%clk 0:02:59]}  Bg7 {[%clk 0:02:57]} 5. h4 {[%clk 0:03:00]}  dxc4 {[%clk 0:02:55]} 6. e4 {[%clk 0:02:58]}  c5 {[%clk 0:02:52]} 7. d5 {[%clk 0:02:58]}  b5 {[%clk 0:02:51]} 8. h5 {[%clk 0:02:58]}  b4 {[%clk 0:02:49]} 9. h6 {[%clk 0:02:57]}  Bf8 {[%clk 0:02:48]} 10. Na4 {[%clk 0:02:51]}  Nxe4 {[%clk 0:02:49]} 11. Bxc4 {[%clk 0:02:49]}  Nd6 {[%clk 0:02:49]} 12. Be2 {[%clk 0:02:41]}  e6 {[%clk 0:02:41]} 13. Nxc5 {[%clk 0:02:37]}  Qc7 {[%clk 0:02:38]} 14. Qd4 {[%clk 0:02:27]}  Rg8 {[%clk 0:02:35]} 15. dxe6 {[%clk 0:02:23]}  fxe6 {[%clk 0:02:27]} 16. Bf4 {[%clk 0:02:19]}  Nf5 {[%clk 0:01:54]} 17. Bxc7 {[%clk 0:02:09]}  Nxd4 {[%clk 0:01:53]} 18. Nxd4 {[%clk 0:02:09]}  Bxc5 {[%clk 0:01:54]} 19. Bf3 {[%clk 0:01:55]}  Bxd4 {[%clk 0:01:54]} 20. Bxa8 {[%clk 0:01:55]}  Bxb2 {[%clk 0:01:54]} 21. Rd1 {[%clk 0:01:43]}  Bc3+ {[%clk 0:01:52]} 22. Ke2 {[%clk 0:01:41]}  Nd7 {[%clk 0:01:49]} 23. Bc6 {[%clk 0:01:33]}  Ke7 {[%clk 0:01:46]} 24. Bd6+ {[%clk 0:01:22]}  Kf7 {[%clk 0:01:44]} 25. Ke3 {[%clk 0:01:20]}  Nf6 {[%clk 0:01:40]} 26. f3 {[%clk 0:01:17]}  a5 {[%clk 0:01:36]} 27. Bc7 {[%clk 0:01:09]}  Ba6 {[%clk 0:01:33]} 28. Bxa5 {[%clk 0:01:07]}  Rc8 {[%clk 0:01:32]} 29. Bd7 {[%clk 0:01:00]}  Rc4 {[%clk 0:01:29]} 30. Ba4 {[%clk 0:00:51]}  Nd5+ {[%clk 0:01:28]} 31. Kf2 {[%clk 0:00:50]}  Bd4+ {[%clk 0:01:28]} 32. Kg3 {[%clk 0:00:49]}  Be5+ {[%clk 0:01:28]} 33. Kf2 {[%clk 0:00:45]}  Rc5 {[%clk 0:01:25]} 34. Bd8 {[%clk 0:00:30]}  Bc4 {[%clk 0:01:24]} 35. Bb3 {[%clk 0:00:29]}  Bxb3 {[%clk 0:01:24]} 36. axb3 {[%clk 0:00:30]}  Rc2+ {[%clk 0:01:25]} 37. Kg1 {[%clk 0:00:26]}  Ne3 {[%clk 0:01:25]} 0-1

[Event "January 9 Early 2024"]
[Site "https://www.chess.com"]
[Date "2024.01.11"]
[Round "11"]
[White "Viana, Valeria"]
[Black "Modric, Nesa"]
[Result "1-0"]
[Board "40"]
[TimeControl "180+1"]
[WhiteFideId "8407100"]
[BlackFideId "922579"]
[WhiteElo "2054"]
[BlackElo "2145"]
[WhiteTeam "HON"]
[BlackTeam "SRB"]
[WhiteClock "0:00:26"]
[BlackClock "0:01:16"]

1. e4 {[%clk 0:02:59]}  c6 {[%clk 0:02:59]} 2. d4 {[%clk 0:02:58]}  d5 {[%clk 0:02:59]} 3. e5 {[%clk 0:02:54]}  Bf5 {[%clk 0:02:58]} 4. g4 {[%clk 0:02:52]}  Bg6 {[%clk 0:02:57]} 5. Ne2 {[%clk 0:02:52]}  e6 {[%clk 0:02:54]} 6. Nf4 {[%clk 0:02:49]}  Be7 {[%clk 0:02:51]} 7. Nxg6 {[%clk 0:02:37]}  hxg6 {[%clk 0:02:50]} 8. Qf3 {[%clk 0:02:32]}  Bg5 {[%clk 0:02:47]} 9. Nd2 {[%clk 0:02:27]}  Ne7 {[%clk 0:02:40]} 10. Nb3 {[%clk 0:02:21]}  a5 {[%clk 0:02:37]} 11. Bxg5 {[%clk 0:02:20]}  b6 {[%clk 0:02:33]} 12. a4 {[%clk 0:02:19]}  Nd7 {[%clk 0:02:33]} 13. Bd3 {[%clk 0:02:13]}  O-O {[%clk 0:02:26]} 14. h4 {[%clk 0:01:59]}  f6 {[%clk 0:02:24]} 15. exf6 {[%clk 0:01:55]}  gxf6 {[%clk 0:02:24]} 16. Bh6 {[%clk 0:01:54]}  Rf7 {[%clk 0:02:24]} 17. Qe2 {[%clk 0:01:48]}  e5 {[%clk 0:02:19]} 18. dxe5 {[%clk 0:01:42]}  Nxe5 {[%clk 0:02:19]} 19. O-O-O {[%clk 0:01:36]}  c5 {[%clk 0:02:19]} 20. Bb5 {[%clk 0:01:29]}  d4 {[%clk 0:02:00]} 21. f4 {[%clk 0:01:27]}  N5c6 {[%clk 0:01:51]} 22. Bc4 {[%clk 0:01:20]}  Nd5 {[%clk 0:01:51]} 23. Qg2 {[%clk 0:01:15]}  Ncb4 {[%clk 0:01:50]} 24. f5 {[%clk 0:01:03]}  gxf5 {[%clk 0:01:47]} 25. gxf5+ {[%clk 0:01:03]}  Kh7 {[%clk 0:01:47]} 26. Qg6+ {[%clk 0:01:03]}  Kh8 {[%clk 0:01:46]} 27. Qxf7 {[%clk 0:01:01]}  Qg8 {[%clk 0:01:44]} 28. Bxd5 {[%clk 0:00:55]}  Nxd5 {[%clk 0:01:41]} 29. Qxg8+ {[%clk 0:00:51]}  Rxg8 {[%clk 0:01:41]} 30. Rhg1 {[%clk 0:00:50]}  Re8 {[%clk 0:01:39]} 31. c4 {[%clk 0:00:47]}  Nb4 {[%clk 0:01:36]} 32. Bg7+ {[%clk 0:00:44]}  Kh7 {[%clk 0:01:36]} 33. Bxf6 {[%clk 0:00:43]}  Re3 {[%clk 0:01:36]} 34. Rg7+ {[%clk 0:00:40]}  Kh6 {[%clk 0:01:35]} 35. Rg6+ {[%clk 0:00:38]}  Kh5 {[%clk 0:01:33]} 36. Rg5+ {[%clk 0:00:36]}  Kh6 {[%clk 0:01:32]} 37. Rg6+ {[%clk 0:00:31]}  Kh5 {[%clk 0:01:31]} 38. Rdg1 {[%clk 0:00:28]}  Rxb3 {[%clk 0:01:16]} 39. R1g5+ {[%clk 0:00:26]}  Kxh4 {[%clk 0:01:16]} 40. Rh6# {[%clk 0:00:26]} 1-0

[Event "January 9 Early 2024"]
[Site "https://www.chess.com"]
[Date "2024.01.11"]
[Round "11"]
[White "Demin, Vladimir"]
[Black "Fernandez Garcia, Gumersindo"]
[Result "0-1"]
[Board "42"]
[TimeControl "180+1"]
[WhiteFideId "4167457"]
[BlackFideId "24516740"]
[WhiteElo "2571"]
[BlackElo "2420"]
[WhiteTeam "RUS"]
[BlackTeam "ESP"]
[WhiteClock "0:00:51"]
[BlackClock "0:00:48"]

1. d4 {[%clk 0:03:00]}  d5 {[%clk 0:02:59]} 2. Nc3 {[%clk 0:03:01]}  Nf6 {[%clk 0:02:59]} 3. Bf4 {[%clk 0:03:01]}  c6 {[%clk 0:02:59]} 4. e3 {[%clk 0:03:01]}  Bf5 {[%clk 0:02:57]} 5. f3 {[%clk 0:03:01]}  h6 {[%clk 0:02:57]} 6. g4 {[%clk 0:03:01]}  Bg6 {[%clk 0:02:56]} 7. h4 {[%clk 0:03:01]}  e6 {[%clk 0:02:56]} 8. Bd3 {[%clk 0:03:01]}  Bxd3 {[%clk 0:02:55]} 9. Qxd3 {[%clk 0:03:02]}  Bd6 {[%clk 0:02:56]} 10. Nge2 {[%clk 0:03:01]}  Bxf4 {[%clk 0:02:49]} 11. Nxf4 {[%clk 0:03:02]}  Nbd7 {[%clk 0:02:49]} 12. O-O-O {[%clk 0:03:01]}  Qc7 {[%clk 0:02:47]} 13. g5 {[%clk 0:03:01]}  Ng8 {[%clk 0:02:40]} 14. g6 {[%clk 0:03:00]}  Nf8 {[%clk 0:02:29]} 15. gxf7+ {[%clk 0:02:57]}  Qxf7 {[%clk 0:02:29]} 16. Na4 {[%clk 0:02:49]}  b6 {[%clk 0:02:12]} 17. Qa6 {[%clk 0:02:31]}  Rd8 {[%clk 0:02:00]} 18. c4 {[%clk 0:02:23]}  Ng6 {[%clk 0:01:58]} 19. Nxg6 {[%clk 0:02:18]}  Qxg6 {[%clk 0:01:58]} 20. c5 {[%clk 0:02:18]}  Ne7 {[%clk 0:01:44]} 21. cxb6 {[%clk 0:02:14]}  axb6 {[%clk 0:01:45]} 22. Qxb6 {[%clk 0:02:13]}  O-O {[%clk 0:01:45]} 23. Nc5 {[%clk 0:02:11]}  Nf5 {[%clk 0:01:23]} 24. Rdg1 {[%clk 0:02:05]}  Qf7 {[%clk 0:01:21]} 25. Qxc6 {[%clk 0:01:59]}  Rc8 {[%clk 0:01:18]} 26. Qb6 {[%clk 0:01:58]}  Nxe3 {[%clk 0:01:17]} 27. b3 {[%clk 0:01:50]}  Nf5 {[%clk 0:01:15]} 28. Rg4 {[%clk 0:01:44]}  Ne3 {[%clk 0:01:09]} 29. Rgg1 {[%clk 0:01:43]}  Nf5 {[%clk 0:01:07]} 30. Rd1 {[%clk 0:01:32]}  Qf6 {[%clk 0:01:00]} 31. Qb4 {[%clk 0:01:16]}  e5 {[%clk 0:00:53]} 32. Kb2 {[%clk 0:01:09]}  Nxd4 {[%clk 0:00:53]} 33. Rxd4 {[%clk 0:00:59]}  exd4 {[%clk 0:00:53]} 34. Nd7 {[%clk 0:00:59]}  Qxf3 {[%clk 0:00:49]} 35. Nxf8 {[%clk 0:00:51]}  Qg2+ {[%clk 0:00:48]} 0-1

[Event "January 9 Early 2024"]
[Site "https://www.chess.com"]
[Date "2024.01.11"]
[Round "11"]
[White "Parfenov, Viktor N."]
[Black "Filippova, Margarita"]
[Result "1/2-1/2"]
[Board "43"]
[TimeControl "180+1"]
[WhiteFideId "4165969"]
[BlackFideId "34199680"]
[WhiteElo "2493"]
[BlackElo "2348"]
[WhiteTeam "RUS"]
[BlackTeam "RUS"]
[WhiteClock "0:01:17"]
[BlackClock "0:00:22"]

1. d4 {[%clk 0:02:49]}  d5 {[%clk 0:02:59]} 2. c4 {[%clk 0:02:50]}  e6 {[%clk 0:02:57]} 3. Nc3 {[%clk 0:02:49]}  c6 {[%clk 0:02:52]} 4. e4 {[%clk 0:02:47]}  dxe4 {[%clk 0:02:21]} 5. Nxe4 {[%clk 0:02:48]}  Nd7 {[%clk 0:02:21]} 6. Nf3 {[%clk 0:02:47]}  Ngf6 {[%clk 0:02:21]} 7. Nxf6+ {[%clk 0:02:46]}  Nxf6 {[%clk 0:02:22]} 8. Bd3 {[%clk 0:02:46]}  c5 {[%clk 0:01:58]} 9. dxc5 {[%clk 0:02:38]}  Bxc5 {[%clk 0:01:58]} 10. O-O {[%clk 0:02:38]}  O-O {[%clk 0:01:55]} 11. a3 {[%clk 0:02:31]}  a5 {[%clk 0:01:52]} 12. Bg5 {[%clk 0:02:17]}  h6 {[%clk 0:01:51]} 13. Bh4 {[%clk 0:02:16]}  b6 {[%clk 0:01:51]} 14. Qe2 {[%clk 0:02:13]}  Bb7 {[%clk 0:01:51]} 15. Rad1 {[%clk 0:02:12]}  Qe7 {[%clk 0:01:49]} 16. Ne5 {[%clk 0:02:11]}  Rfd8 {[%clk 0:01:48]} 17. Bc2 {[%clk 0:01:53]}  Rxd1 {[%clk 0:01:11]} 18. Rxd1 {[%clk 0:01:52]}  Rd8 {[%clk 0:01:12]} 19. h3 {[%clk 0:01:41]}  Rxd1+ {[%clk 0:00:53]} 20. Qxd1 {[%clk 0:01:41]}  Qd6 {[%clk 0:00:52]} 21. Qxd6 {[%clk 0:01:28]}  Bxd6 {[%clk 0:00:53]} 22. Bxf6 {[%clk 0:01:28]}  gxf6 {[%clk 0:00:53]} 23. Nd7 {[%clk 0:01:29]}  Be5 {[%clk 0:00:51]} 24. b4 {[%clk 0:01:28]}  axb4 {[%clk 0:00:49]} 25. axb4 {[%clk 0:01:28]}  Bd4 {[%clk 0:00:50]} 26. c5 {[%clk 0:01:26]}  bxc5 {[%clk 0:00:50]} 27. Nxc5 {[%clk 0:01:26]}  Bc6 {[%clk 0:00:47]} 28. Be4 {[%clk 0:01:21]}  Bxc5 {[%clk 0:00:43]} 29. Bxc6 {[%clk 0:01:20]}  Bxb4 {[%clk 0:00:43]} 30. g3 {[%clk 0:01:19]}  f5 {[%clk 0:00:43]} 31. Kg2 {[%clk 0:01:19]}  Kg7 {[%clk 0:00:42]} 32. Be8 {[%clk 0:01:19]}  Kf6 {[%clk 0:00:42]} 33. h4 {[%clk 0:01:19]}  Bc5 {[%clk 0:00:25]} 34. f4 {[%clk 0:01:19]}  Be7 {[%clk 0:00:20]} 35. Kf3 {[%clk 0:01:18]}  Kg7 {[%clk 0:00:20]} 36. Kg2 {[%clk 0:01:17]}  Bf6 {[%clk 0:00:20]} 37. Kf3 {[%clk 0:01:17]}  Be7 {[%clk 0:00:21]} 38. Kg2 {[%clk 0:01:17]}  Bf6 {[%clk 0:00:21]} 39. Kf3 {[%clk 0:01:17]}  Be7 {[%clk 0:00:22]} 1/2-1/2

[Event "January 9 Early 2024"]
[Site "https://www.chess.com"]
[Date "2024.01.11"]
[Round "11"]
[White "Gonzalez Vega, Alejandro"]
[Black "Nowak, Lukasz"]
[Result "1-0"]
[Board "44"]
[TimeControl "180+1"]
[WhiteFideId "3510042"]
[BlackFideId "1166760"]
[WhiteElo "2254"]
[BlackElo "2023"]
[WhiteTeam "CUB"]
[BlackTeam "POL"]
[WhiteClock "0:00:58"]
[BlackClock "0:00:01"]

1. e4 {[%clk 0:03:00]}  e6 {[%clk 0:02:58]} 2. Nf3 {[%clk 0:03:00]}  d5 {[%clk 0:02:57]} 3. e5 {[%clk 0:03:00]}  c5 {[%clk 0:02:52]} 4. b4 {[%clk 0:02:58]}  cxb4 {[%clk 0:02:48]} 5. d4 {[%clk 0:02:58]}  Nc6 {[%clk 0:02:45]} 6. a3 {[%clk 0:02:57]}  Bd7 {[%clk 0:02:43]} 7. axb4 {[%clk 0:02:57]}  Bxb4+ {[%clk 0:02:43]} 8. c3 {[%clk 0:02:57]}  Bf8 {[%clk 0:02:14]} 9. Bd3 {[%clk 0:02:57]}  Nge7 {[%clk 0:02:13]} 10. O-O {[%clk 0:02:56]}  Ng6 {[%clk 0:02:13]} 11. Ng5 {[%clk 0:02:53]}  Be7 {[%clk 0:02:01]} 12. f4 {[%clk 0:02:36]}  h6 {[%clk 0:01:49]} 13. Nxf7 {[%clk 0:02:26]}  Kxf7 {[%clk 0:01:47]} 14. Qh5 {[%clk 0:02:26]}  Kg8 {[%clk 0:01:39]} 15. Bxg6 {[%clk 0:02:24]}  Be8 {[%clk 0:01:37]} 16. f5 {[%clk 0:02:21]}  exf5 {[%clk 0:01:12]} 17. Qxf5 {[%clk 0:02:08]}  Qd7 {[%clk 0:01:03]} 18. e6 {[%clk 0:02:03]}  Qd8 {[%clk 0:00:55]} 19. Bf7+ {[%clk 0:02:02]}  Bxf7 {[%clk 0:00:53]} 20. exf7+ {[%clk 0:01:54]}  Kf8 {[%clk 0:00:49]} 21. Ba3 {[%clk 0:01:42]}  Bxa3 {[%clk 0:00:35]} 22. Nxa3 {[%clk 0:01:41]}  Qg5 {[%clk 0:00:15]} 23. Qd7 {[%clk 0:00:59]}  Rb8 {[%clk 0:00:01]} 24. Rae1 {[%clk 0:00:58]} 1-0

[Event "January 9 Early 2024"]
[Site "https://www.chess.com"]
[Date "2024.01.11"]
[Round "11"]
[White "Zou, Chen"]
[Black "Trost, Edvin"]
[Result "0-1"]
[Board "45"]
[TimeControl "180+1"]
[WhiteFideId "8610959"]
[BlackFideId "1729519"]
[WhiteElo "2800"]
[BlackElo "2652"]
[WhiteTeam "CHN"]
[BlackTeam "SWE"]
[WhiteClock "0:01:51"]
[BlackClock "0:00:17"]

1. e3 {[%clk 0:03:00]}  b6 {[%clk 0:02:58]} 2. Be2 {[%clk 0:02:59]}  Bb7 {[%clk 0:02:58]} 3. Bf3 {[%clk 0:03:00]}  Nc6 {[%clk 0:02:58]} 4. Ne2 {[%clk 0:02:58]}  Nf6 {[%clk 0:02:56]} 5. d3 {[%clk 0:02:57]}  e5 {[%clk 0:02:48]} 6. Nd2 {[%clk 0:02:57]}  d5 {[%clk 0:02:44]} 7. g3 {[%clk 0:02:57]}  h5 {[%clk 0:02:40]} 8. h3 {[%clk 0:02:57]}  Bc5 {[%clk 0:02:39]} 9. Bg2 {[%clk 0:02:57]}  Qe7 {[%clk 0:02:36]} 10. c3 {[%clk 0:02:57]}  O-O-O {[%clk 0:02:35]} 11. Qc2 {[%clk 0:02:57]}  Kb8 {[%clk 0:02:31]} 12. b3 {[%clk 0:02:57]}  Rhe8 {[%clk 0:02:16]} 13. a3 {[%clk 0:02:56]}  d4 {[%clk 0:02:14]} 14. cxd4 {[%clk 0:02:55]}  exd4 {[%clk 0:02:14]} 15. e4 {[%clk 0:02:55]}  g5 {[%clk 0:02:03]} 16. Bb2 {[%clk 0:02:55]}  Ne5 {[%clk 0:01:59]} 17. b4 {[%clk 0:02:54]}  Ba6 {[%clk 0:01:54]} 18. Nc1 {[%clk 0:02:50]}  Bd6 {[%clk 0:01:50]} 19. Ndb3 {[%clk 0:02:42]}  c5 {[%clk 0:01:31]} 20. bxc5 {[%clk 0:02:43]}  bxc5 {[%clk 0:01:32]} 21. Rb1 {[%clk 0:02:36]}  g4 {[%clk 0:01:27]} 22. h4 {[%clk 0:02:35]}  Ka8 {[%clk 0:01:26]} 23. Na5 {[%clk 0:02:30]}  Rb8 {[%clk 0:01:24]} 24. O-O {[%clk 0:02:28]}  Qc7 {[%clk 0:01:15]} 25. Nc4 {[%clk 0:02:20]}  Bxc4 {[%clk 0:01:12]} 26. dxc4 {[%clk 0:02:21]}  Nf3+ {[%clk 0:01:13]} 27. Bxf3 {[%clk 0:02:20]}  gxf3 {[%clk 0:01:14]} 28. e5 {[%clk 0:02:18]}  Rxe5 {[%clk 0:01:07]} 29. Nd3 {[%clk 0:02:12]}  Re2 {[%clk 0:01:06]} 30. Qc1 {[%clk 0:02:06]}  Bxg3 {[%clk 0:01:01]} 31. Qg5 {[%clk 0:02:05]}  Bxf2+ {[%clk 0:00:44]} 32. Kh1 {[%clk 0:02:00]}  Be3 {[%clk 0:00:32]} 33. Qe5 {[%clk 0:01:56]}  Qxe5 {[%clk 0:00:29]} 34. Nxe5 {[%clk 0:01:57]}  Rexb2 {[%clk 0:00:29]} 35. Rxb2 {[%clk 0:01:57]}  Rxb2 {[%clk 0:00:30]} 36. Rxf3 {[%clk 0:01:57]}  Ng4 {[%clk 0:00:31]} 37. Nxg4 {[%clk 0:01:51]}  Rb1+ {[%clk 0:00:22]} 38. Kg2 {[%clk 0:01:50]}  hxg4 {[%clk 0:00:21]} 39. Rxf7 {[%clk 0:01:48]}  Rg1+ {[%clk 0:00:22]} 40. Kh2 {[%clk 0:01:48]}  g3+ {[%clk 0:00:21]} 41. Kh3 {[%clk 0:01:49]}  g2 {[%clk 0:00:20]} 42. h5 {[%clk 0:01:50]}  Rf1 {[%clk 0:00:18]} 43. Kh2 {[%clk 0:01:50]}  Rxf7 {[%clk 0:00:18]} 44. Kh3 {[%clk 0:01:50]}  g1=Q {[%clk 0:00:17]} 45. h6 {[%clk 0:01:51]}  Rh7 {[%clk 0:00:17]} 46. Kh4 {[%clk 0:01:51]}  Bxh6 {[%clk 0:00:17]} 47. Kh5 {[%clk 0:01:51]}  Qg8 {[%clk 0:00:17]} 0-1

[Event "January 9 Early 2024"]
[Site "https://www.chess.com"]
[Date "2024.01.11"]
[Round "11"]
[White "Matthes, Aaron"]
[Black "Nouali, Mohamed"]
[Result "0-1"]
[Board "47"]
[TimeControl "180+1"]
[WhiteFideId "16227310"]
[BlackFideId "5502462"]
[WhiteElo "2401"]
[BlackElo "2576"]
[WhiteTeam "GER"]
[BlackTeam "TUN"]
[WhiteClock "0:00:11"]
[BlackClock "0:01:14"]

1. Nf3 {[%clk 0:03:00]}  Nf6 {[%clk 0:02:59]} 2. g3 {[%clk 0:03:00]}  g6 {[%clk 0:03:00]} 3. Bg2 {[%clk 0:03:01]}  Bg7 {[%clk 0:03:01]} 4. O-O {[%clk 0:03:01]}  O-O {[%clk 0:03:02]} 5. d4 {[%clk 0:03:02]}  d6 {[%clk 0:03:02]} 6. b3 {[%clk 0:03:00]}  c5 {[%clk 0:03:03]} 7. Bb2 {[%clk 0:03:01]}  Ne4 {[%clk 0:03:02]} 8. Nbd2 {[%clk 0:03:00]}  Bf5 {[%clk 0:02:58]} 9. Nh4 {[%clk 0:02:49]}  d5 {[%clk 0:02:45]} 10. Nxf5 {[%clk 0:02:41]}  gxf5 {[%clk 0:02:46]} 11. Nf3 {[%clk 0:02:40]}  Nc6 {[%clk 0:02:45]} 12. e3 {[%clk 0:02:33]}  e6 {[%clk 0:02:41]} 13. c3 {[%clk 0:02:22]}  a5 {[%clk 0:02:36]} 14. Qe2 {[%clk 0:02:17]}  a4 {[%clk 0:02:35]} 15. bxa4 {[%clk 0:01:57]}  Rxa4 {[%clk 0:02:30]} 16. Qb5 {[%clk 0:01:56]}  Ra7 {[%clk 0:02:18]} 17. dxc5 {[%clk 0:01:55]}  Qa5 {[%clk 0:02:18]} 18. Qb3 {[%clk 0:01:46]}  Nxc5 {[%clk 0:02:17]} 19. Qc2 {[%clk 0:01:43]}  Qa4 {[%clk 0:02:14]} 20. Qd2 {[%clk 0:01:35]}  Ne4 {[%clk 0:02:13]} 21. Qd3 {[%clk 0:01:32]}  Rfa8 {[%clk 0:01:59]} 22. Nd4 {[%clk 0:01:29]}  Ne5 {[%clk 0:01:59]} 23. Qd1 {[%clk 0:01:25]}  Nc4 {[%clk 0:01:57]} 24. Bxe4 {[%clk 0:01:08]}  fxe4 {[%clk 0:01:52]} 25. Rb1 {[%clk 0:01:00]}  Qxd1 {[%clk 0:01:47]} 26. Rfxd1 {[%clk 0:01:00]}  Rxa2 {[%clk 0:01:48]} 27. Ba1 {[%clk 0:00:40]}  Nd2 {[%clk 0:01:41]} 28. Rbc1 {[%clk 0:00:33]}  Bxd4 {[%clk 0:01:24]} 29. cxd4 {[%clk 0:00:19]}  Nb3 {[%clk 0:01:23]} 30. Rc7 {[%clk 0:00:19]}  Rxa1 {[%clk 0:01:23]} 31. Rxa1 {[%clk 0:00:18]}  Rxa1+ {[%clk 0:01:23]} 32. Kg2 {[%clk 0:00:19]}  Nd2 {[%clk 0:01:21]} 33. Rxb7 {[%clk 0:00:20]}  Nf3 {[%clk 0:01:19]} 34. h4 {[%clk 0:00:17]}  h5 {[%clk 0:01:15]} 35. g4 {[%clk 0:00:10]}  Rg1+ {[%clk 0:01:14]} 36. Kh3 {[%clk 0:00:11]}  hxg4# {[%clk 0:01:14]} 0-1

[Event "January 9 Early 2024"]
[Site "https://www.chess.com"]
[Date "2024.01.11"]
[Round "11"]
[White "Albuquerque Junior,Wellington S."]
[Black "Clawitter, Craig"]
[Result "1-0"]
[Board "48"]
[TimeControl "180+1"]
[WhiteFideId "2151480"]
[BlackFideId "2023105"]
[WhiteElo "2370"]
[BlackElo "2228"]
[WhiteTeam "BRA"]
[BlackTeam "USA"]
[WhiteClock "0:01:28"]
[BlackClock "0:00:05"]

1. c4 {[%clk 0:02:56]}  e6 {[%clk 0:03:00]} 2. g3 {[%clk 0:02:56]}  Nf6 {[%clk 0:03:00]} 3. Bg2 {[%clk 0:02:56]}  d5 {[%clk 0:03:01]} 4. Nf3 {[%clk 0:02:56]}  Be7 {[%clk 0:03:02]} 5. O-O {[%clk 0:02:56]}  O-O {[%clk 0:03:02]} 6. b3 {[%clk 0:02:57]}  d4 {[%clk 0:03:02]} 7. e3 {[%clk 0:02:54]}  c5 {[%clk 0:03:02]} 8. exd4 {[%clk 0:02:53]}  cxd4 {[%clk 0:03:03]} 9. Re1 {[%clk 0:02:53]}  Nc6 {[%clk 0:03:01]} 10. Ne5 {[%clk 0:02:53]}  Nxe5 {[%clk 0:02:56]} 11. Rxe5 {[%clk 0:02:54]}  Bd6 {[%clk 0:02:57]} 12. Re1 {[%clk 0:02:53]}  e5 {[%clk 0:02:52]} 13. Ba3 {[%clk 0:02:52]}  Re8 {[%clk 0:02:43]} 14. d3 {[%clk 0:02:49]}  Bg4 {[%clk 0:02:29]} 15. f3 {[%clk 0:02:47]}  Bf5 {[%clk 0:02:20]} 16. Qd2 {[%clk 0:02:38]}  h6 {[%clk 0:01:50]} 17. Bxd6 {[%clk 0:02:31]}  Qxd6 {[%clk 0:01:50]} 18. b4 {[%clk 0:02:32]}  a5 {[%clk 0:01:40]} 19. b5 {[%clk 0:02:32]}  Nd7 {[%clk 0:01:34]} 20. Bf1 {[%clk 0:02:25]}  Nc5 {[%clk 0:01:28]} 21. Qc2 {[%clk 0:02:21]}  Qg6 {[%clk 0:01:17]} 22. Rd1 {[%clk 0:02:15]}  h5 {[%clk 0:01:07]} 23. Kf2 {[%clk 0:02:15]}  Qf6 {[%clk 0:00:41]} 24. Kg2 {[%clk 0:02:08]}  b6 {[%clk 0:00:33]} 25. Nd2 {[%clk 0:02:08]}  h4 {[%clk 0:00:25]} 26. Ne4 {[%clk 0:01:51]}  Bxe4 {[%clk 0:00:20]} 27. fxe4 {[%clk 0:01:50]}  hxg3 {[%clk 0:00:19]} 28. hxg3 {[%clk 0:01:50]}  Re6 {[%clk 0:00:17]} 29. Qf2 {[%clk 0:01:45]}  Qg5 {[%clk 0:00:17]} 30. Qf5 {[%clk 0:01:45]}  Qxf5 {[%clk 0:00:15]} 31. exf5 {[%clk 0:01:46]}  Rf6 {[%clk 0:00:15]} 32. g4 {[%clk 0:01:44]}  g6 {[%clk 0:00:15]} 33. fxg6 {[%clk 0:01:44]}  Rxg6 {[%clk 0:00:15]} 34. Be2 {[%clk 0:01:43]}  f5 {[%clk 0:00:14]} 35. Rf1 {[%clk 0:01:43]}  fxg4 {[%clk 0:00:13]} 36. Rf5 {[%clk 0:01:43]}  Re8 {[%clk 0:00:12]} 37. Raf1 {[%clk 0:01:35]}  e4 {[%clk 0:00:11]} 38. dxe4 {[%clk 0:01:35]}  Nxe4 {[%clk 0:00:10]} 39. Bd3 {[%clk 0:01:35]}  Rge6 {[%clk 0:00:06]} 40. R1f4 {[%clk 0:01:32]}  g3 {[%clk 0:00:06]} 41. Rg4+ {[%clk 0:01:29]}  Kh7 {[%clk 0:00:05]} 42. Bxe4 {[%clk 0:01:27]}  Rxe4 {[%clk 0:00:05]} 43. Rh5# {[%clk 0:01:28]} 1-0

[Event "January 9 Early 2024"]
[Site "https://www.chess.com"]
[Date "2024.01.11"]
[Round "11"]
[White "Aronian, Levon"]
[Black "Vokhidov, Shamsiddin"]
[Result "1-0"]
[Board "53"]
[TimeControl "180+1"]
[WhiteFideId "13300474"]
[BlackFideId "14204223"]
[WhiteElo "3102"]
[BlackElo "3000"]
[WhiteTeam "USA"]
[BlackTeam "UZB"]
[WhiteClock "0:01:04"]
[BlackClock "0:00:20"]

1. e4 {[%clk 0:03:00]}  c5 {[%clk 0:02:59]} 2. Nf3 {[%clk 0:03:01]}  e6 {[%clk 0:02:59]} 3. c3 {[%clk 0:03:00]}  Nf6 {[%clk 0:02:58]} 4. Bd3 {[%clk 0:03:00]}  d5 {[%clk 0:02:57]} 5. e5 {[%clk 0:03:00]}  Nfd7 {[%clk 0:02:57]} 6. Bc2 {[%clk 0:02:58]}  c4 {[%clk 0:02:57]} 7. d4 {[%clk 0:02:58]}  cxd3 {[%clk 0:02:58]} 8. Qxd3 {[%clk 0:02:59]}  Nc6 {[%clk 0:02:53]} 9. Qe2 {[%clk 0:02:59]}  Qc7 {[%clk 0:02:37]} 10. Bf4 {[%clk 0:02:58]}  f6 {[%clk 0:02:32]} 11. Ba4 {[%clk 0:02:58]}  Nc5 {[%clk 0:02:31]} 12. Bb5 {[%clk 0:02:58]}  a6 {[%clk 0:02:30]} 13. Bxc6+ {[%clk 0:02:58]}  bxc6 {[%clk 0:02:29]} 14. Nbd2 {[%clk 0:02:58]}  a5 {[%clk 0:02:28]} 15. O-O {[%clk 0:02:55]}  f5 {[%clk 0:02:21]} 16. Nd4 {[%clk 0:02:49]}  Be7 {[%clk 0:02:20]} 17. Bg5 {[%clk 0:02:43]}  Bxg5 {[%clk 0:02:13]} 18. Qh5+ {[%clk 0:02:42]}  Qf7 {[%clk 0:02:12]} 19. Qxg5 {[%clk 0:02:42]}  Bd7 {[%clk 0:02:07]} 20. Qe3 {[%clk 0:02:37]}  f4 {[%clk 0:02:05]} 21. Qf3 {[%clk 0:02:33]}  O-O {[%clk 0:02:05]} 22. b4 {[%clk 0:02:20]}  Na4 {[%clk 0:02:01]} 23. N2b3 {[%clk 0:02:15]}  Rfb8 {[%clk 0:01:53]} 24. a3 {[%clk 0:02:09]}  axb4 {[%clk 0:01:52]} 25. axb4 {[%clk 0:02:08]}  Be8 {[%clk 0:01:40]} 26. h4 {[%clk 0:02:06]}  h6 {[%clk 0:01:33]} 27. Nc5 {[%clk 0:01:59]}  Nxc5 {[%clk 0:01:33]} 28. bxc5 {[%clk 0:02:00]}  Bd7 {[%clk 0:01:29]} 29. Rxa8 {[%clk 0:01:54]}  Rxa8 {[%clk 0:01:29]} 30. Rb1 {[%clk 0:01:54]}  Ra5 {[%clk 0:01:25]} 31. Rb8+ {[%clk 0:01:50]}  Kh7 {[%clk 0:01:23]} 32. Qd3+ {[%clk 0:01:50]}  g6 {[%clk 0:01:20]} 33. Rb7 {[%clk 0:01:50]}  Qe7 {[%clk 0:01:14]} 34. h5 {[%clk 0:01:36]}  Kh8 {[%clk 0:00:31]} 35. Rb8+ {[%clk 0:01:17]}  Be8 {[%clk 0:00:31]} 36. Qb1 {[%clk 0:01:08]}  Qd7 {[%clk 0:00:20]} 37. Qxg6 {[%clk 0:01:04]} 1-0